bitfinex-derivatives/quotes_ETHF0:USTF0_20251013
["timestamp","ask_amount","ask_price","bid_price","bid_amount"]
[1760340208996,6.94824816,4187.1,4187.0,0.00272427]
[1760340211002,6.94824816,4187.1,4187.0,0.46262427]
[1760340212707,6.94824816,4187.1,4185.5,0.60869]
[1760340212708,1.07413,4186.9,4185.5,0.1789]
[1760340212896,0.42983,4185.1,4185.0,0.1789]
[1760340213205,3.63763,4185.1,4185.0,0.1789]
[1760340213402,3.2078,4185.1,4185.0,6.30063874]
[1760340213601,3.21079267,4185.1,4185.0,6.30272184]
[1760340214606,3.21079267,4185.1,4185.0,6.76262184]
[1760340215805,3.21079267,4185.1,4185.0,6.14112184]
[1760340216000,0.85443135,4186.6,4185.9,0.42975]
[1760340216203,0.42966,4186.8,4186.6,0.4599]
[1760340216503,0.42966,4186.8,4186.7,5.96013874]
[1760340216706,0.42966,4186.8,4186.7,0.4599]
[1760340216906,0.42966,4186.8,4186.7,5.96013874]
[1760340217106,0.43266299,4186.8,4186.7,5.96013874]
[1760340218001,0.43266299,4186.8,4186.0,0.1789]
[1760340218002,0.42972,4186.3,4186.0,0.1789]
[1760340218200,0.42972,4186.3,4186.2,0.4599]
[1760340219904,0.42969,4186.5,4186.3,0.4599]
[1760340220105,0.42969,4186.5,4186.4,0.4599]
[1760340220405,0.42969,4186.5,4186.4,5.96013874]
[1760340220608,3.58514048,4186.5,4186.4,5.96013874]
[1760340221604,3.58514048,4186.5,4186.4,6.27433874]
[1760340222509,3.58514048,4186.5,4186.4,5.96013874]
[1760340222708,3.58514048,4186.5,4186.4,0.4599]
[1760340224013,3.58514048,4186.5,4186.4,0.7741]
[1760340225515,3.58514048,4186.5,4186.4,0.4599]
[1760340226712,0.42972,4186.2,4186.0,0.1789]
[1760340227012,0.42972,4186.2,4185.7,0.5183]
[1760340227013,0.42975,4186.0,4185.7,0.42977]
[1760340227204,3.2078,4185.9,4185.8,6.72553874]
[1760340227410,6.36106992,4185.9,4185.8,6.72553874]
[1760340227614,6.36106992,4185.9,4185.8,1.2253]
[1760340228211,3.2078,4186.4,4186.3,1.2253]
[1760340228611,0.00300299,4186.8,4186.7,0.8551]
[1760340228809,0.65499988,4186.8,4186.7,0.8551]
[1760340232011,3.86279988,4186.8,4186.7,6.35533874]
[1760340233819,0.42967,4186.7,4186.5,0.2037]
[1760340234020,0.65199689,4186.6,4186.5,0.7437]
[1760340234318,0.65199689,4186.6,4186.5,1.0791]
[1760340234518,0.65199689,4186.6,4186.5,6.94283874]
[1760340236309,0.65199689,4186.6,4186.5,0.7437]
[1760340237023,0.65199689,4186.6,4186.5,1.0791]
[1760340238427,0.65199689,4186.6,4186.5,6.94283874]
[1760340239024,1.71613569,4187.9,4186.5,6.94283874]
[1760340239025,1.63279489,4187.8,4187.7,0.42957]
[1760340239225,0.3474,4188.3,4188.2,1.30491]
[1760340239425,0.6833,4188.3,4188.2,1.30491]
[1760340239628,0.3474,4188.3,4188.2,1.66841]
[1760340239926,0.6833,4188.3,4188.0,0.7415]
[1760340240123,0.6833,4188.1,4188.0,0.74349235]
[1760340240323,4.60153,4188.1,4188.0,0.00199235]
[1760340240528,7.64096119,4188.1,4188.0,0.00199235]
[1760340241129,0.6833,4187.1,4187.0,1.17113]
[1760340241336,1.11293,4187.1,4186.8,0.42965]
[1760340241637,0.6833,4186.8,4186.7,0.54]
[1760340242035,0.6833,4186.8,4186.7,0.87806791]
[1760340242838,0.42962,4187.2,4186.8,1.30506]
[1760340242839,0.3474,4186.9,4186.8,1.30506]
[1760340243138,0.6833,4186.9,4186.8,1.66856]
[1760340243434,0.3474,4186.9,4186.8,1.66856]
[1760340245038,0.9642,4186.9,4186.8,0.96966]
[1760340245540,0.6833,4186.9,4186.8,0.96966]
[1760340245841,0.6833,4186.9,4186.8,1.30506]
[1760340246038,0.2809,4186.8,4186.7,0.00266791]
[1760340246237,0.9642,4186.8,4186.7,0.00266791]
[1760340246438,4.10058134,4186.8,4186.7,0.00266791]
[1760340247434,4.10058134,4186.8,4184.9,1.07464]
[1760340247435,0.6833,4185.7,4185.6,0.54]
[1760340247840,0.6833,4185.7,4185.6,0.8754]
[1760340248440,0.42973,4186.2,4185.6,0.54173005]
[1760340248845,3.52147488,4186.2,4185.6,0.54173005]
[1760340249044,0.6833,4185.9,4185.8,0.76515]
[1760340249343,0.6833,4185.9,4185.8,1.30515]
[1760340250140,8.4578,4186.8,4186.1,0.8754]
[1760340250141,0.6833,4186.2,4186.1,0.8754]
[1760340250539,0.6833,4186.2,4186.1,0.54]
[1760340250943,0.9642,4186.2,4186.1,0.54]
[1760340251241,0.6833,4185.9,4185.8,0.96976]
[1760340251443,1.3167072,4185.9,4185.8,0.96976]
[1760340251636,1.3167072,4185.9,4185.8,1.30516]
[1760340251836,0.6833,4185.9,4185.8,1.66866]
[1760340252043,0.42969,4186.5,4186.3,0.54]
[1760340252233,0.98073839,4186.4,4186.3,0.8754]
[1760340252741,4.06170488,4186.4,4185.6,3.20953005]
[1760340252946,0.3474,4185.7,4185.6,4.87821005]
[1760340253647,0.3474,4186.0,4185.9,1.30514]
[1760340254144,0.98062304,4186.0,4185.9,1.66864]
[1760340254542,0.2809,4187.4,4186.6,0.42968]
[1760340254845,0.6833,4186.8,4186.7,1.2389]
[1760340255038,1.31638858,4186.8,4186.7,1.2389]
[1760340255238,4.44812674,4186.8,4186.7,1.2389]
[1760340255437,0.63308858,4186.8,4186.7,1.2389]
[1760340255637,1.41315042,4187.1,4187.0,1.33004]
[1760340255948,1.41315042,4187.1,4187.0,1.87004]
[1760340255949,2.04618282,4187.1,4187.0,1.87004]
[1760340256240,3.63736,4187.8,4187.3,0.76501]
[1760340256241,1.76055042,4187.4,4187.3,0.76501]
[1760340256452,1.76055042,4187.4,4187.3,1.66851]
[1760340257348,0.3474,4187.4,4187.3,1.66851]
[1760340257550,3.5552,4187.8,4187.7,0.42957]
[1760340257746,0.6833,4186.9,4186.8,3.7478]
[1760340257947,0.2809,4186.8,4186.3,3.2078]
[1760340258247,0.2809,4186.8,4185.8,3.2078]
[1760340258248,0.2809,4186.4,4185.8,3.2078]
[1760340258446,0.4297,4186.5,4185.8,3.2078]
[1760340258748,4.00466186,4186.4,4186.1,0.54]
[1760340258949,3.37163467,4186.4,4186.1,0.54]
[1760340259148,3.37163467,4186.4,4185.8,3.2078]
[1760340259951,3.37163467,4186.4,4186.2,0.94891]
[1760340260150,3.37163467,4186.4,4186.2,0.42971]
[1760340260351,3.37163467,4186.4,4186.3,0.5192]
[1760340260352,3.09073467,4186.4,4186.3,0.5192]
[1760340263448,3.78253467,4186.4,4186.3,0.5192]
[1760340264849,1.0064,4186.3,4186.2,0.42971]
[1760340265051,0.6918,4186.0,4185.9,0.94895]
[1760340265249,0.6918,4186.0,4185.9,1.29185]
[1760340266251,0.6918,4186.0,4185.9,1.66715]
[1760340268652,0.42972,4186.3,4186.1,0.42972]
[1760340268861,0.3425,4186.5,4186.4,1.29179]
[1760340269156,4.45110868,4186.5,4186.4,1.29179]
[1760340270152,0.97540085,4186.5,4186.4,4.87489]
[1760340270353,0.63290085,4186.5,4186.4,4.87489]
[1760340270560,0.6918,4186.9,4186.8,0.94885]
[1760340270852,1.32475562,4186.9,4186.8,0.94885]
[1760340271061,4.39550536,4186.9,4186.8,0.94885]
[1760340271254,4.39550536,4186.9,4186.8,1.66705]
[1760340271255,0.63295562,4186.9,4186.8,1.66705]
[1760340271454,3.5503,4187.3,4187.2,1.29172]
[1760340271654,4.18331932,4187.3,4187.2,1.29172]
[1760340272156,0.63301932,4187.3,4187.2,1.66702]
[1760340272357,3.8996,4187.8,4187.7,0.42957]
[1760340272552,0.63288577,4187.8,4187.7,1.66697]
[1760340273154,0.6918,4188.2,4188.1,1.29162]
[1760340273352,1.32429994,4188.2,4188.1,1.29162]
[1760340273656,4.36831137,4188.2,4188.1,1.29162]
[1760340274256,3.73581143,4188.2,4188.1,1.29162]
[1760340275959,1.0064,4187.7,4187.6,3.63738]
[1760340276451,1.0064,4187.7,4187.6,4.15658]
[1760340277656,0.3425,4188.0,4187.9,0.42954]
[1760340277862,0.3425,4188.2,4188.1,1.14772]
[1760340278360,1.0064,4188.2,4188.1,0.42952]
[1760340278553,1.0064,4188.2,4187.7,0.5192]
[1760340278554,0.6918,4188.2,4187.6,3.2078]
[1760340278756,1.0064,4187.6,4187.5,0.42958]
[1760340278954,0.6918,4187.6,4187.5,1.87668]
[1760340279354,0.6918,4188.0,4187.9,0.77245]
[1760340279561,0.34458728,4188.3,4188.2,1.66691]
[1760340279761,1.64033593,4188.3,4188.2,0.94871]
[1760340280961,1.32573593,4188.3,4188.2,0.94871]
[1760340281261,0.6918,4186.7,4186.6,1.29178]
[1760340281462,3.2078,4187.3,4186.9,0.5192]
[1760340281657,3.2078,4187.3,4187.0,0.9279]
[1760340281658,0.63190758,4187.2,4187.0,0.9279]
[1760340281855,0.6918,4187.7,4187.6,1.14777]
[1760340282050,0.3425,4187.7,4187.6,1.14777]
[1760340282259,0.3425,4188.0,4187.9,0.77244]
[1760340282462,0.3425,4188.0,4187.9,1.66694]
[1760340282762,0.6918,4188.0,4187.9,1.66694]
[1760340283959,0.6918,4188.0,4187.9,1.29164]
[1760340284159,1.0064,4188.0,4187.9,0.94874]
[1760340284360,4.0813261,4188.0,4187.5,0.2097]
[1760340284565,0.6918,4187.7,4187.6,0.5192]
[1760340284761,1.0066,4187.7,4187.6,0.5192]
[1760340284962,0.6918,4187.7,4187.6,0.5192]
[1760340285261,4.1758163,4187.7,4187.1,3.7775]
[1760340285465,0.7205,4187.2,4187.1,4.20712]
[1760340285665,0.7205,4187.2,4187.1,4.58652]
[1760340286168,0.7205,4187.6,4187.5,1.20839]
[1760340286469,0.7205,4187.6,4187.5,0.7788]
[1760340287969,0.74442,4187.2,4187.1,3.2078]
[1760340288167,3.10542244,4187.6,4186.8,0.5697]
[1760340288168,0.7205,4186.9,4186.8,1.75665]
[1760340288370,0.3478,4186.9,4186.8,1.75665]
[1760340288567,3.10542244,4187.2,4187.0,0.2091]
[1760340288773,0.7205,4187.2,4187.1,0.9491]
[1760340289173,1.0353,4187.2,4187.1,0.5697]
[1760340289572,1.0519,4186.8,4186.5,0.63938]
[1760340289770,0.7403,4186.6,4186.5,0.7373]
[1760340289970,0.42964,4187.0,4186.6,0.42968]
[1760340290168,0.42964,4187.0,4186.6,0.5276]
[1760340290374,1.16994,4187.0,4186.9,0.3679]
[1760340290574,1.16994,4187.0,4186.9,0.8955]
[1760340291778,3.2078,4187.3,4186.9,0.3653]
[1760340291969,3.2078,4187.3,4186.6,3.2078]
[1760340291970,3.9481,4187.3,4187.2,0.8955]
[1760340292170,0.7403,4186.8,4186.7,0.8955]
[1760340292380,0.7403,4186.8,4186.7,1.32517]
[1760340292677,0.7403,4186.8,4186.7,0.8955]
[1760340292978,0.7403,4186.8,4186.1,3.2078]
[1760340292979,1.0519,4186.3,4186.2,0.5276]
[1760340293373,3.5194,4186.8,4186.5,0.2232]
[1760340293574,0.3626,4186.6,4186.5,1.1187]
[1760340293975,3.79922813,4186.6,4186.5,1.1187]
[1760340294280,3.79922813,4186.6,4186.5,0.7508]
[1760340294468,3.79922813,4186.6,4186.5,1.1187]
[1760340294781,3.5704,4186.8,4186.7,1.2608]
[1760340296379,3.9481,4186.8,4186.7,0.8955]
[1760340296581,4.2597,4186.8,4186.7,0.5276]
[1760340296777,0.3116,4186.5,4186.4,0.42969]
[1760340297077,1.0519,4186.5,4186.4,0.42969]
[1760340297279,1.0519,4186.5,4186.4,0.95729]
[1760340297471,0.7403,4186.5,4186.4,1.69049]
[1760340297675,0.3626,4186.5,4186.4,1.69049]
[1760340297982,0.7403,4186.5,4186.4,1.32519]
[1760340298174,1.0519,4186.5,4186.4,0.42969]
[1760340298377,0.3777,4186.2,4186.1,0.5276]
[1760340298680,0.3777,4186.2,4185.6,4.28398005]
[1760340298681,0.3626,4185.9,4185.8,1.69056]
[1760340299480,1.0519,4185.7,4185.6,0.00173005]
[1760340299878,4.11826179,4185.7,4185.6,0.00173005]
[1760340301480,1.07446,4185.6,4184.6,3.2078]
[1760340301684,1.0519,4184.7,4184.6,3.2078]
[1760340301984,1.0519,4184.6,4184.5,0.42989]
[1760340302180,0.7403,4184.6,4184.5,1.54859]
[1760340302686,0.74225735,4184.6,4184.5,1.55116268]
[1760340303182,1.05385735,4184.6,4184.5,0.00257268]
[1760340304388,0.74225735,4184.6,4184.5,0.53017268]
[1760340304887,0.74225735,4184.6,4184.5,1.12127268]
[1760340305096,0.00195735,4184.6,4184.5,1.48657268]
[1760340309682,0.74225735,4184.6,4184.5,0.75337268]
[1760340309988,1.05385735,4184.6,4184.5,0.53017268]
[1760340310189,0.74225735,4184.6,4184.5,0.89807268]
[1760340310384,0.74225735,4184.6,4184.5,1.12127268]
[1760340310987,0.74225735,4184.6,4184.5,1.48657268]
[1760340312489,1.05385735,4184.6,4184.5,0.00257268]
[1760340313285,1.05385735,4184.6,4184.5,0.53017268]
[1760340313490,0.74225735,4184.6,4184.5,0.53017268]
[1760340313680,0.74225735,4184.6,4184.5,1.12127268]
[1760340314386,4.19122341,4184.6,4184.5,0.00257268]
[1760340314588,9.59481824,4184.6,4184.5,0.00257268]
[1760340314979,1.02575401,4185.5,4184.5,0.00257268]
[1760340314980,0.85465401,4185.9,4185.8,0.95736]
[1760340315184,3.2078,4186.6,4186.0,0.2232]
[1760340315384,3.2078,4186.6,4186.5,0.7508]
[1760340315985,3.21025858,4186.6,4186.5,0.7508]
[1760340319297,6.29013223,4186.6,4186.0,0.5276]
[1760340319697,0.3012,4186.5,4186.2,0.5225]
[1760340319996,3.07033416,4186.4,4186.2,0.5225]
[1760340320193,3.07033416,4186.4,4186.3,0.95221]
[1760340320398,3.07033416,4186.5,4186.3,0.42971]
[1760340320599,3.07033416,4186.5,4186.4,0.5225]
[1760340320794,3.21025858,4186.6,4186.4,0.5225]
[1760340320996,3.21025858,4186.6,4186.5,0.7479]
[1760340323304,3.58005858,4186.6,4186.5,1.1259]
[1760340323601,3.58005858,4186.6,4186.5,1.4666]
[1760340324796,3.58005858,4186.6,4186.4,0.42969]
[1760340324797,1.0278,4186.5,4186.4,0.42969]
[1760340325098,0.7266,4186.3,4186.2,0.95221]
[1760340325300,1.15631,4186.3,4186.2,0.5225]
[1760340325599,1.45753,4186.1,4185.8,3.2078]
[1760340325795,0.3698,4185.9,4185.8,3.5858]
[1760340325996,0.7266,4185.9,4185.8,3.5858]
[1760340326193,0.7266,4185.9,4185.8,3.7303]
[1760340326398,0.7266,4185.3,4185.2,0.5225]
[1760340326898,3.14112184,4185.3,4184.7,0.42987]
[1760340327102,0.42984,4185.1,4185.0,0.7479]
[1760340328905,0.73104,4185.1,4185.0,0.5225]
[1760340329408,0.42984,4185.1,4185.0,0.5225]
[1760340329801,0.42985,4184.9,4184.6,0.42988]
[1760340330101,0.42986,4184.8,4184.7,0.5225]
[1760340330296,0.42988,4184.6,4184.5,0.52507268]
[1760340330496,0.73108,4184.6,4184.5,0.00257268]
[1760340330701,3.93888,4184.6,4184.5,0.00257268]
[1760340331104,3.63768,4184.6,4184.5,0.75047268]
[1760340335210,3.93888,4184.6,4184.5,0.00257268]
[1760340335416,0.73116,4183.9,4183.6,0.42998]
[1760340335613,6.91032664,4184.6,4183.7,0.95247]
[1760340335614,3.63774,4184.1,4183.7,0.95247]
[1760340335812,3.2078,4184.1,4184.0,0.2254]
[1760340336018,3.2078,4184.1,4184.0,0.7479]
[1760340336408,3.2078,4184.1,4184.0,0.75047807]
[1760340337115,3.509,4184.1,4184.0,0.00257807]
[1760340337616,6.60653196,4184.1,4184.0,0.00257807]
[1760340338305,7.33313196,4184.1,4184.0,0.00257807]
[1760340339715,7.33313196,4184.1,4183.0,0.2254]
[1760340339716,1.15664,4183.1,4183.0,1.1259]
[1760340339909,1.45784,4183.1,4183.0,0.5225]
[1760340340107,0.43009,4182.6,4182.5,0.9441]
[1760340340411,0.43009,4182.6,4182.5,1.4666]
[1760340340612,0.4327538,4182.6,4182.5,1.46970088]
[1760340341416,0.0026638,4182.6,4182.5,1.46970088]
[1760340343416,0.3724638,4182.6,4182.5,1.46970088]
[1760340344312,0.7292638,4182.6,4182.5,1.46970088]
[1760340344620,1.0304638,4182.6,4182.5,0.00310088]
[1760340345321,3.38388975,4182.6,4182.5,0.00310088]
[1760340346718,0.0026638,4182.6,4182.5,0.70880088]
[1760340350828,0.0026638,4182.6,4182.5,1.38960088]
[1760340351923,0.43001,4183.4,4183.2,0.5486]
[1760340352228,3.63778,4183.7,4183.5,0.2082]
[1760340352529,3.63778,4183.7,4183.6,0.5486]
[1760340352931,3.64039926,4183.7,4183.6,0.5486]
[1760340353430,0.43004,4183.2,4183.1,0.5486]
[1760340354129,0.43004,4183.2,4182.6,0.5486]
[1760340354130,0.43008,4182.7,4182.6,0.5486]
[1760340358234,0.43008,4182.7,4182.6,1.2404]
[1760340359332,0.43008,4182.7,4182.5,0.20500088]
[1760340359333,3.2078,4183.2,4183.1,1.2404]
[1760340359536,4.26397218,4183.2,4183.1,1.2404]
[1760340359732,4.97927218,4183.2,4183.1,0.8965]
[1760340359933,4.97927218,4183.2,4183.1,0.5486]
[1760340360237,0.43009,4182.6,4182.5,0.20500088]
[1760340360534,0.43009,4182.6,4182.5,0.89680088]
[1760340360735,0.43009,4182.6,4182.5,1.44540088]
[1760340361631,0.77579,4182.6,4182.5,1.44540088]
[1760340363340,0.43008,4182.8,4182.7,0.6918]
[1760340363543,1.0570602,4182.8,4182.7,1.2404]
[1760340364941,1.4027602,4182.8,4182.7,1.2404]
[1760340365145,1.0570602,4182.8,4182.7,1.2404]
[1760340365444,1.4027602,4182.8,4182.7,1.2404]
[1760340366139,0.6269802,4182.8,4182.7,1.2404]
[1760340367044,3.63783,4183.2,4183.1,1.2404]
[1760340367235,4.26767658,4183.2,4183.1,1.2404]
[1760340368332,3.83764658,4183.2,4183.1,1.2404]
[1760340368539,0.62984658,4183.2,4183.1,1.2404]
[1760340369137,3.21041926,4183.7,4183.2,0.43003]
[1760340369443,0.00261926,4183.7,4183.6,1.67039]
[1760340369636,0.63231453,4183.7,4183.6,1.67039]
[1760340370437,0.00261926,4183.7,4183.6,1.67039]
[1760340371453,0.3457,4184.6,4184.5,0.2082]
[1760340371641,0.3457,4184.6,4184.0,0.2082]
[1760340371642,0.7153,4184.1,4184.0,0.5486]
[1760340371841,4.99740912,4184.1,4184.0,0.5486]
[1760340372545,4.55443569,4184.1,4184.0,0.8965]
[1760340372737,4.55443569,4184.1,4184.0,1.4486]
[1760340373145,0.00212657,4184.1,4184.0,1.4486]
[1760340373749,3.2078,4184.7,4184.5,0.2082]
[1760340373947,3.98331,4185.3,4185.2,1.2404]
[1760340374250,4.61187192,4185.3,4185.2,1.2404]
[1760340374844,4.61462834,4185.3,4185.2,1.2404]
[1760340375044,4.98422834,4185.3,4185.2,1.2404]
[1760340375244,5.42932834,4185.3,4185.2,0.8965]
[1760340375450,5.42932834,4185.3,4185.0,0.2082]
[1760340375451,1.59023,4185.1,4185.0,0.7568]
[1760340375648,1.14513,4185.1,4185.0,1.1047]
[1760340375849,0.77553,4185.1,4185.0,1.4486]
[1760340376542,0.42983,4185.1,4185.0,1.4486]
[1760340376743,0.00275642,4185.3,4185.2,0.6918]
[1760340376943,0.00275642,4185.3,4185.2,1.2404]
[1760340377849,3.2078,4186.3,4186.2,1.2404]
[1760340378953,3.2103387,4186.3,4186.2,1.24217562]
[1760340380553,0.6933387,4186.3,4186.2,1.24217562]
[1760340380754,1.1214387,4186.3,4186.2,0.55037562]
[1760340380954,4.3292387,4186.3,4186.2,0.55037562]
[1760340381747,0.42975,4185.9,4185.8,0.5133]
[1760340381951,1.11343,4185.1,4185.0,0.7215]
[1760340382151,1.11343,4185.1,4185.0,1.0827]
[1760340382351,3.63762,4185.3,4185.0,0.9068]
[1760340382647,0.3385,4185.2,4185.1,0.8745]
[1760340382847,0.3385,4185.2,4185.1,0.8765875]
[1760340383555,0.6836,4185.2,4185.1,0.8765875]
[1760340384151,0.6836,4185.2,4185.1,1.2139875]
[1760340384353,0.3385,4185.2,4185.1,1.2139875]
[1760340384650,0.4298,4185.5,4185.1,1.2139875]
[1760340384651,0.4281,4185.7,4185.1,1.2139875]
[1760340384858,0.3385,4185.2,4185.1,1.2139875]
[1760340386754,0.42982,4185.3,4185.2,0.5133]
[1760340387054,0.76832,4185.3,4185.2,1.2119]
[1760340387849,1.11342,4185.3,4185.2,1.2119]
[1760340389652,0.6836,4185.3,4185.2,1.2119]
[1760340389855,0.4298,4185.5,4185.3,0.5133]
[1760340390055,0.42977,4185.7,4185.6,0.5133]
[1760340390258,3.2078,4185.8,4185.7,0.5133]
[1760340390459,3.2078,4185.8,4185.7,1.2119]
[1760340390964,0.0025387,4186.3,4186.0,0.1995]
[1760340390965,3.2103387,4186.3,4186.0,0.1995]
[1760340391165,3.2103387,4186.3,4186.2,1.2119]
[1760340391768,0.0025387,4186.3,4186.2,1.2119]
[1760340396267,3.2078,4187.3,4187.2,1.64151]
[1760340396968,3.2078,4187.3,4187.2,1.2119]
[1760340397168,3.2103591,4187.3,4187.2,1.2119]
[1760340397761,0.0025591,4187.3,4187.2,1.2119]
[1760340398771,0.3410591,4187.3,4187.2,1.2119]
[1760340399269,3.8939591,4187.3,4187.2,1.2119]
[1760340399469,4.94460502,4187.3,4187.2,0.8745]
[1760340400364,4.51650502,4187.3,4187.2,0.8745]
[1760340400564,3.83290502,4187.3,4187.2,1.2119]
[1760340401269,3.2103591,4187.3,4187.2,1.2119]
[1760340401469,0.0025591,4187.3,4187.2,1.2119]
[1760340401762,1.28510432,4188.3,4188.2,0.6986]
[1760340401763,3.2078,4188.3,4188.2,0.6986]
[1760340401957,3.83063358,4188.3,4188.2,1.2119]
[1760340402564,1.1143,4188.1,4188.0,0.7128]
[1760340402770,1.30882128,4188.1,4188.0,1.07575305]
[1760340402962,0.62522128,4188.1,4188.0,1.41315305]
[1760340403965,0.0023877,4188.1,4188.0,1.41315305]
[1760340404165,0.3408877,4188.1,4188.0,1.41315305]
[1760340404466,0.96354033,4188.1,4188.0,1.41315305]
[1760340408372,1.30864033,4188.1,4188.0,1.41315305]
[1760340409476,0.6859877,4188.1,4188.0,1.41315305]
[1760340409673,1.0985877,4188.1,4188.0,1.41315305]
[1760340409976,1.0985877,4188.1,4188.0,0.00175305]
[1760340410190,4.88969366,4188.1,4188.0,0.00175305]
[1760340411075,0.7051,4187.1,4187.0,1.3868]
[1760340411374,3.2078,4187.6,4187.5,1.3836]
[1760340411568,0.4319177,4188.1,4188.0,1.3836]
[1760340411968,0.4319177,4188.1,4188.0,1.38656588]
[1760340411969,0.0023877,4188.1,4188.0,1.38656588]
[1760340414879,1.74227462,4188.1,4188.0,0.00296588]
[1760340415083,1.74227462,4188.1,4188.0,0.50236588]
[1760340415274,1.74227462,4188.1,4188.0,0.00296588]
[1760340416076,4.81580729,4188.1,4188.0,0.00296588]
[1760340416274,4.85736769,4188.1,4188.0,0.00296588]
[1760340417971,4.44476769,4188.1,4188.0,0.85576588]
[1760340418178,4.44476769,4188.1,4188.0,1.38656588]
[1760340418372,4.85736769,4188.1,4188.0,0.00296588]
[1760340419583,5.7120217,4188.1,4188.0,0.00296588]
[1760340420175,4.44476769,4188.1,4188.0,1.38656588]
[1760340420373,1.01523502,4188.1,4188.0,1.38656588]
[1760340420784,1.78383502,4188.1,4188.0,0.00296588]
[1760340420980,2.63848903,4188.1,4188.0,0.00296588]
[1760340421185,1.78383502,4188.1,4188.0,0.00296588]
[1760340421378,1.78383502,4188.1,4188.0,0.50236588]
[1760340421686,4.81716789,4188.1,4188.0,0.00296588]
[1760340422585,1.37123502,4188.1,4188.0,1.38656588]
[1760340423177,2.22757913,4188.1,4188.0,1.38656588]
[1760340423383,1.37123502,4188.1,4188.0,1.38656588]
[1760340424181,2.22757913,4188.1,4188.0,1.38656588]
[1760340424381,1.37123502,4188.1,4188.0,1.38656588]
[1760340424688,0.66613502,4188.1,4188.0,1.38656588]
[1760340424883,1.01523502,4188.1,4188.0,1.38656588]
[1760340425686,1.78383502,4188.1,4188.0,1.05206588]
[1760340426886,1.37123502,4188.1,4188.0,1.05206588]
[1760340427390,1.37123502,4188.1,4188.0,1.38656588]
[1760340428893,1.01523502,4188.1,4188.0,1.38656588]
[1760340429091,0.62457462,4188.1,4188.0,1.38656588]
[1760340431385,0.0023877,4188.1,4188.0,1.38656588]
[1760340432892,0.3514877,4188.1,4188.0,1.38656588]
[1760340433087,0.0023877,4188.1,4188.0,1.38656588]
[1760340434692,0.3514877,4188.1,4188.0,1.38656588]
[1760340434886,0.7074877,4188.1,4188.0,1.38656588]
[1760340435591,1.74419547,4188.1,4188.0,1.05206588]
[1760340436089,1.74419547,4188.1,4188.0,0.00296588]
[1760340436691,1.33159547,4188.1,4188.0,1.38656588]
[1760340436985,0.62649547,4188.1,4188.0,1.38656588]
[1760340437192,0.0023877,4188.1,4188.0,1.38656588]
[1760340442290,2.52059768,4188.1,4188.0,1.38656588]
[1760340443297,1.84419768,4188.1,4188.0,1.38656588]
[1760340443497,1.76296768,4188.1,4188.0,1.38656588]
[1760340444893,2.09106768,4188.1,4188.0,1.38656588]
[1760340445089,2.48716768,4188.1,4188.0,0.50236588]
[1760340445300,3.11103871,4188.1,4188.0,0.50236588]
[1760340445893,6.2246774,4188.1,4188.0,0.00296588]
[1760340446297,7.08102151,4188.1,4188.0,0.00296588]
[1760340446597,6.2246774,4188.1,4188.0,0.00296588]
[1760340447298,7.50978172,4188.1,4188.0,0.00296588]
[1760340449098,6.2246774,4188.1,4188.0,0.00296588]
[1760340449293,7.08145772,4188.1,4188.0,0.52126588]
[1760340449895,6.2246774,4188.1,4188.0,0.52126588]
[1760340450090,4.81239742,4188.1,4188.0,0.00296588]
[1760340450301,5.8285774,4188.1,4188.0,1.06206588]
[1760340450895,6.2246774,4188.1,4188.0,1.06206588]
[1760340451295,4.41629742,4188.1,4188.0,1.39476588]
[1760340451501,2.03853871,4188.1,4188.0,1.39476588]
[1760340451701,2.71493871,4188.1,4188.0,1.39476588]
[1760340454308,3.11103871,4188.1,4188.0,1.06206588]
[1760340456611,2.71493871,4188.1,4188.0,1.06206588]
[1760340459125,3.11103871,4188.1,4188.0,0.00296588]
[1760340459420,6.27911482,4188.1,4188.0,0.00296588]
[1760340460121,6.27911482,4188.1,4188.0,0.52126588]
[1760340460312,6.27911482,4188.1,4188.0,0.85806588]
[1760340460512,6.27911482,4188.1,4188.0,1.06206588]
[1760340461314,5.88301482,4188.1,4188.0,1.39476588]
[1760340461516,0.62625873,4188.1,4188.0,1.39476588]
[1760340462621,0.97455873,4188.1,4188.0,1.39476588]
[1760340462824,1.30265873,4188.1,4188.0,1.39476588]
[1760340463216,1.69875873,4188.1,4188.0,0.52126588]
[1760340463416,1.69875873,4188.1,4188.0,0.00296588]
[1760340463821,1.69875873,4188.1,4188.0,0.52126588]
[1760340464018,1.69875873,4188.1,4188.0,0.85806588]
[1760340464218,1.30265873,4188.1,4188.0,1.39476588]
[1760340464422,0.97455873,4188.1,4188.0,1.39476588]
[1760340465118,1.30265873,4188.1,4188.0,1.39476588]
[1760340465320,0.62625873,4188.1,4188.0,1.36486588]
[1760340468029,0.62482216,4188.1,4188.0,1.36486588]
[1760340469234,2.36530214,4188.1,4188.0,1.36486588]
[1760340470033,2.37070214,4188.1,4188.0,1.36486588]
[1760340470336,2.68540214,4188.1,4188.0,1.36486588]
[1760340470628,2.37070214,4188.1,4188.0,1.36486588]
[1760340470831,3.06390214,4188.1,4188.0,0.52126588]
[1760340471042,3.06390214,4188.1,4188.0,0.00296588]
[1760340471529,6.15759367,4188.1,4188.0,0.00296588]
[1760340471731,7.01437399,4188.1,4188.0,0.00296588]
[1760340473534,6.15759367,4188.1,4188.0,0.00296588]
[1760340473936,7.01437399,4188.1,4188.0,0.00296588]
[1760340475233,0.6483,4187.1,4187.0,1.0267]
[1760340475434,1.74587998,4187.1,4187.0,1.3473]
[1760340475740,1.74587998,4187.4,4187.3,0.6544]
[1760340476038,2.68360319,4187.4,4187.3,1.1478]
[1760340476240,2.68360319,4187.4,4187.3,1.15081842]
[1760340477441,3.06210319,4187.4,4187.3,0.00301842]
[1760340477737,3.06210319,4187.4,4187.3,0.83021842]
[1760340477936,2.68360319,4187.4,4187.3,1.58042842]
[1760340478335,2.36890319,4187.4,4187.3,1.58042842]
[1760340478537,0.95662321,4187.4,4187.3,1.58042842]
[1760340478730,0.62302321,4187.4,4187.3,1.58042842]
[1760340479132,1.72697998,4187.7,4187.6,0.3338]
[1760340479332,2.68370915,4187.7,4187.6,0.8272]
[1760340479530,3.11327915,4187.7,4187.6,0.8272]